bitfinex-derivatives/quotes_BTCF0:USTF0_20241203
["timestamp","ask_amount","ask_price","bid_price","bid_amount"]
[1733243285638,0.052059,96018.0,96003.0,0.05362827]
[1733243285639,0.412866,96004.0,96003.0,0.05362827]
[1733243285938,0.66805559,96004.0,96003.0,0.05362827]
[1733243286339,0.25518959,96004.0,96003.0,0.05362827]
[1733243286754,0.16592,96004.0,96003.0,0.05962827]
[1733243287043,0.3608,96012.0,96011.0,0.052062]
[1733243287347,0.61594059,96012.0,96011.0,0.052102]
[1733243287534,0.52672,96012.0,96011.0,0.052102]
[1733243287731,0.64601585,96012.0,96011.0,0.052102]
[1733243287935,0.55688325,96012.0,96011.0,0.052102]
[1733243288140,0.64603087,96012.0,96011.0,0.052102]
[1733243288344,0.69809441,96012.0,96011.0,0.052102]
[1733243288538,0.69809441,96012.0,96011.0,0.057102]
[1733243289255,0.69809441,96012.0,96011.0,0.060102]
[1733243290133,0.79928607,96012.0,96011.0,0.060102]
[1733243290350,1.07983885,96012.0,96011.0,0.060102]
[1733243290544,0.79928607,96012.0,96011.0,0.060102]
[1733243291434,0.79928607,96012.0,96011.0,0.00804]
[1733243291743,1.11093021,96012.0,96011.0,0.00804]
[1733243292047,0.79928607,96012.0,96011.0,0.00804]
[1733243292242,0.79928607,96012.0,96011.0,0.060102]
[1733243292436,0.69809441,96012.0,96011.0,0.060102]
[1733243294140,0.79975019,96012.0,96011.0,0.060102]
[1733243294548,0.69809441,96012.0,96011.0,0.060102]
[1733243295043,0.79975445,96012.0,96011.0,0.060102]
[1733243295639,0.69809441,96012.0,96011.0,0.060102]
[1733243295848,0.79981956,96012.0,96011.0,0.060102]
[1733243297351,0.48011241,96012.0,96011.0,0.060102]
[1733243297543,0.64603241,96012.0,96011.0,0.060102]
[1733243297846,0.69809341,96012.0,96011.0,0.060102]
[1733243298749,0.7997305,96012.0,96011.0,0.060102]
[1733243299645,1.08054163,96012.0,96011.0,0.060102]
[1733243300347,0.7997305,96012.0,96011.0,0.060102]
[1733243300939,0.7997305,96012.0,96011.0,0.00804]
[1733243301142,0.052063,96010.0,95978.0,0.0105]
[1733243301339,1.42804288,96012.0,95970.0,0.052084]
[1733243301340,0.052076,95987.0,95986.0,0.052076]
[1733243301547,0.218036,95987.0,95986.0,0.052076]
[1733243301847,0.40894327,95987.0,95986.0,0.052076]
[1733243302242,0.40895478,95987.0,95986.0,0.052076]
[1733243302442,0.30718516,95987.0,95986.0,0.052076]
[1733243303857,0.30818516,95987.0,95986.0,0.061076]
[1733243304056,0.35888858,95987.0,95986.0,0.068076]
[1733243304246,0.38857817,95987.0,95986.0,0.059076]
[1733243304443,0.28779875,95987.0,95986.0,0.059076]
[1733243305154,0.28779875,95987.0,95986.0,0.052076]
[1733243305155,0.33887375,95987.0,95986.0,0.052076]
[1733243309454,0.28679875,95987.0,95986.0,0.052076]
[1733243310054,0.33887375,95987.0,95986.0,0.052076]
[1733243310956,0.28679875,95987.0,95986.0,0.052076]
[1733243311864,0.001,95987.0,95986.0,0.412876]
[1733243312351,0.001,95987.0,95986.0,1.912876]
[1733243313552,0.43788,96009.0,96006.0,0.052065]
[1733243313754,0.28562637,96007.0,96006.0,0.052065]
[1733243313962,0.25533827,96007.0,96006.0,0.052105]
[1733243314355,0.4093967,96007.0,96006.0,0.052105]
[1733243314859,0.4223967,96007.0,96006.0,0.053105]
[1733243315752,0.45236614,96007.0,96006.0,0.053105]
[1733243316147,0.40030214,96007.0,96006.0,0.053105]
[1733243316654,0.40033341,96007.0,96006.0,0.053105]
[1733243320768,0.68074718,96007.0,96006.0,0.053105]
[1733243321164,0.73281118,96007.0,96006.0,0.053105]
[1733243321670,0.45239741,96007.0,96006.0,0.053105]
[1733243321874,0.40033341,96007.0,96006.0,0.053105]
[1733243322371,0.45239741,96007.0,96006.0,0.053105]
[1733243323474,0.40033341,96007.0,96006.0,0.053105]
[1733243323674,0.23457341,96007.0,96006.0,0.053105]
[1733243323869,0.10257827,96007.0,96006.0,0.053105]
[1733243324066,0.00987827,96007.0,96006.0,0.053105]
[1733243328577,0.06194327,96007.0,96006.0,0.00104]
[1733243328982,0.16188646,96007.0,96006.0,0.00104]
[1733243329181,0.16188646,96007.0,95986.0,0.0105]
[1733243329182,0.052071,95998.0,95986.0,0.0105]
[1733243329476,0.26566867,95997.0,95996.0,0.052071]
[1733243329683,0.16572,95997.0,95996.0,0.052071]
[1733243330082,0.2660154,95997.0,95996.0,0.052071]
[1733243330679,0.17172,95997.0,95996.0,0.053071]
[1733243330980,0.006,95997.0,95996.0,0.053071]
[1733243331183,0.007,95997.0,95996.0,0.053071]
[1733243331574,0.007,95997.0,95996.0,1.58315832]
[1733243332392,0.007,95997.0,95988.0,0.3608]
[1733243332583,0.007,95997.0,95928.0,0.01564]
[1733243332584,0.01,95977.0,95969.0,0.0105]
[1733243332885,0.9873599,95996.0,95942.0,1.5]
[1733243332886,0.7216,95970.0,95942.0,1.5]
[1733243333074,0.7216,95943.0,95942.0,1.5521]
[1733243333279,0.72164,95943.0,95942.0,1.5521]
[1733243333480,0.72176948,95943.0,95942.0,1.5521]
[1733243334388,0.72576948,95943.0,95942.0,1.5521]
[1733243334784,0.72976948,95943.0,95942.0,1.5531]
[1733243335780,0.73076948,95943.0,95942.0,1.5531]
[1733243336990,0.72376948,95943.0,95942.0,1.5521]
[1733243337177,0.72976948,95943.0,95942.0,1.5521]
[1733243337689,0.72576948,95943.0,95942.0,1.5521]
[1733243338289,0.3608,95960.0,95959.0,0.052091]
[1733243338484,0.3608,95963.0,95959.0,0.052091]
[1733243338685,0.3608,95963.0,95962.0,0.052089]
[1733243338885,0.3608,95963.0,95962.0,1.552089]
[1733243339285,0.36087532,95963.0,95962.0,1.552089]
[1733243342484,0.36087532,95963.0,95962.0,1.554089]
[1733243343087,0.36087532,95963.0,95962.0,0.054089]
[1733243343289,0.36087532,95963.0,95962.0,0.052089]
[1733243343596,0.36087532,95963.0,95962.0,1.554089]
[1733243344088,0.36087532,95963.0,95962.0,1.552089]
[1733243344089,0.36187532,95963.0,95962.0,1.552089]
[1733243344796,0.36287532,95963.0,95962.0,1.552089]
[1733243346189,0.36287532,95963.0,95962.0,1.553089]
[1733243346890,0.36087532,95963.0,95962.0,1.552089]
[1733243347085,0.36287532,95963.0,95962.0,1.553089]
[1733243348787,0.36287532,95963.0,95962.0,0.053089]
[1733243349094,0.41496432,95963.0,95962.0,0.001]
[1733243349290,0.36287532,95963.0,95962.0,0.053089]
[1733243349688,0.05209,95960.0,95959.0,4e-05]
[1733243349889,0.3608,95960.0,95928.0,0.052107]
[1733243350089,0.3608,95943.0,95942.0,0.05366312]
[1733243351799,0.3618,95943.0,95942.0,0.05866312]
[1733243352695,0.3618,95943.0,95942.0,0.06266312]
[1733243353099,0.3608,95943.0,95942.0,0.05766312]
[1733243353297,0.3608,95943.0,95942.0,0.06266312]
[1733243353298,0.3618,95943.0,95942.0,0.06266312]
[1733243353689,0.3608,95943.0,95942.0,1.55766312]
[1733243353889,0.3618,95943.0,95942.0,1.56266312]
[1733243356898,0.3618,95943.0,95942.0,1.56466312]
[1733243357500,0.3618,95943.0,95942.0,1.55866312]
[1733243357501,0.3608,95943.0,95942.0,1.55866312]
[1733243357688,0.3618,95943.0,95942.0,1.56366312]
[1733243358595,0.3618,95943.0,95942.0,1.55866312]
[1733243358897,0.3618,95943.0,95942.0,1.56266312]
[1733243359289,0.306652,95943.0,95942.0,1.56266312]
[1733243360087,0.001,95943.0,95942.0,1.56266312]
[1733243360294,0.001,95943.0,95942.0,1.59201945]
[1733243360697,0.3634,95951.0,95950.0,0.052096]
[1733243360698,0.309778,95951.0,95950.0,0.052096]
[1733243360898,0.188654,95951.0,95950.0,0.052096]
[1733243361202,0.132767,95951.0,95950.0,0.052136]
[1733243361401,0.01564,95960.0,95959.0,0.052091]
[1733243361692,4e-05,95960.0,95959.0,0.052131]
[1733243362793,0.00104,95960.0,95959.0,0.052131]
[1733243363094,0.00104,95960.0,95959.0,1.552131]
[1733243363699,0.00604,95960.0,95959.0,1.552131]
[1733243364299,0.00104,95960.0,95959.0,1.552131]
[1733243364895,4e-05,95960.0,95959.0,1.552131]
[1733243365104,4e-05,95960.0,95959.0,1.554131]
[1733243366092,4e-05,95960.0,95959.0,1.58366778]
[1733243366295,4e-05,95960.0,95959.0,1.58166778]
[1733243366499,4e-05,95960.0,95959.0,1.58666778]
[1733243367098,0.00104,95960.0,95959.0,1.59366778]
[1733243367491,4e-05,95960.0,95959.0,1.58666778]
[1733243367695,0.00104,95960.0,95959.0,1.59466778]
[1733243368101,4e-05,95960.0,95959.0,1.58666778]
[1733243368299,0.00104,95960.0,95959.0,1.59266778]
[1733243369795,7.532e-05,95963.0,95962.0,0.052089]
[1733243370107,0.0555,95974.0,95962.0,0.052089]
[1733243370108,0.21822268,95977.0,95976.0,0.052082]
[1733243370309,0.05594,95992.0,95976.0,0.412882]
[1733243370499,0.0553,95992.0,95991.0,0.052073]
[1733243370802,0.0553,95992.0,95991.0,0.052113]
[1733243371105,0.05540661,95992.0,95991.0,0.052113]
[1733243371307,0.08492085,95992.0,95991.0,0.052113]
[1733243372301,0.00010661,95992.0,95991.0,0.052113]
[1733243372696,0.09908091,95992.0,95991.0,0.052113]
[1733243372905,0.00010661,95992.0,95991.0,0.052113]
[1733243373098,0.22711848,95992.0,95991.0,0.053113]
[1733243373299,0.22711848,95992.0,95991.0,0.0828287]
[1733243373300,0.00910661,95992.0,95991.0,0.0828287]
[1733243373507,0.00010661,95992.0,95991.0,0.0818287]
[1733243373706,0.00410661,95992.0,95991.0,0.0818287]
[1733243374006,0.00410661,95992.0,95991.0,1.5818287]
[1733243375203,0.00410661,95992.0,95991.0,1.552113]
[1733243375411,0.00410661,95992.0,95991.0,0.052113]
[1733243384105,0.00410661,95992.0,95991.0,0.07295995]
[1733243396117,0.10267981,95992.0,95991.0,0.07295995]
[1733243396423,0.00410661,95992.0,95991.0,0.07295995]
[1733243399816,0.10267126,95992.0,95991.0,0.07295995]
[1733243400521,0.10267126,95992.0,95991.0,4e-05]
[1733243400719,0.26700747,95992.0,95991.0,4e-05]
[1733243400919,0.26700747,95992.0,95984.0,0.02084541]
[1733243400920,0.052075,95988.0,95984.0,0.02084541]
[1733243401114,0.67942786,95987.0,95984.0,0.07292241]
[1733243401315,0.34378073,95986.0,95985.0,0.052076]
[1733243401514,0.70458073,95986.0,95985.0,0.052076]
[1733243402121,0.34378073,95986.0,95985.0,0.052076]
[1733243402424,0.50469048,95986.0,95985.0,0.052076]
[1733243402621,0.34378073,95986.0,95985.0,0.052076]
[1733243402821,0.21144102,95986.0,95985.0,0.44277277]
[1733243403033,0.09886389,95986.0,95985.0,0.44277277]
[1733243403426,0.21144102,95986.0,95985.0,1.58197277]
[1733243403615,0.34439389,95986.0,95985.0,1.552076]
[1733243403819,0.3608,95987.0,95986.0,0.052076]
[1733243404013,0.57268688,95987.0,95986.0,0.052076]
[1733243404214,0.70611461,95987.0,95986.0,0.052116]
[1733243405125,0.70711461,95987.0,95986.0,0.052116]
[1733243405317,0.70711461,95987.0,95986.0,4e-05]
[1733243405521,0.7070163,95987.0,95975.0,0.07292795]
[1733243405732,0.7070163,95987.0,95969.0,0.052085]
[1733243405733,0.3608,95976.0,95969.0,0.052085]
[1733243405927,0.33324883,95971.0,95969.0,0.052085]
[1733243406230,0.21188688,95970.0,95969.0,0.052085]
[1733243407122,0.21188688,95970.0,95969.0,0.060085]
[1733243407326,0.31207132,95970.0,95969.0,0.060085]
[1733243407517,0.5239582,95970.0,95969.0,0.052085]
[1733243407723,0.21288688,95970.0,95969.0,0.060085]
[1733243407922,0.10007238,95970.0,95969.0,0.060085]
[1733243408228,0.10007238,95970.0,95969.0,0.065085]
[1733243408622,0.23349242,95970.0,95969.0,0.065085]
[1733243408925,0.26496437,95970.0,95969.0,0.065085]
[1733243409931,0.21288037,95970.0,95969.0,0.065085]
[1733243410124,0.31282316,95970.0,95969.0,0.065085]
[1733243410325,0.37780037,95970.0,95969.0,0.065085]
[1733243411328,0.42563115,95970.0,95969.0,0.065085]
[1733243411518,0.001,95970.0,95969.0,0.065085]
[1733243411719,0.31264634,95970.0,95969.0,0.065085]
[1733243412027,0.2131824,95970.0,95969.0,1.565085]
[1733243412230,0.21366816,95970.0,95969.0,1.565085]
[1733243413027,0.21366816,95970.0,95969.0,0.065085]
[1733243413824,0.28139838,95970.0,95969.0,0.065085]
[1733243414025,0.10021054,95970.0,95969.0,0.065085]
[1733243415523,0.26513054,95970.0,95969.0,0.065085]
[1733243415825,0.3787969,95970.0,95969.0,0.065085]
[1733243416625,0.2128769,95970.0,95969.0,0.057085]
[1733243416927,0.2128769,95970.0,95969.0,0.066085]
[1733243416928,0.001,95970.0,95969.0,0.066085]
[1733243417131,0.10021054,95970.0,95969.0,0.066085]
[1733243417428,0.2138769,95970.0,95969.0,0.061085]
[1733243417627,0.2138769,95970.0,95969.0,0.067085]
[1733243417628,0.34937752,95970.0,95969.0,0.067085]
[1733243417829,0.10021054,95970.0,95969.0,0.067085]
[1733243418042,0.25116717,95970.0,95969.0,0.067085]
[1733243418333,0.10121054,95970.0,95969.0,0.066085]
[1733243418527,0.002,95970.0,95969.0,0.066085]
[1733243418924,0.21698322,95970.0,95969.0,0.066085]
[1733243419123,0.35371521,95970.0,95969.0,0.066085]
[1733243419328,0.68371521,95970.0,95969.0,0.066085]
[1733243420028,0.68371521,95970.0,95964.0,0.02084714]
[1733243420228,0.3608,95965.0,95964.0,0.02084714]
[1733243420434,1.07078322,95965.0,95964.0,0.07293514]
[1733243420733,1.38225922,95965.0,95964.0,0.052088]
[1733243420937,1.20721062,95965.0,95964.0,0.052088]
[1733243421125,1.25929762,95965.0,95964.0,0.052088]
[1733243421328,1.20721062,95965.0,95964.0,0.059088]
[1733243421524,1.04229062,95965.0,95964.0,0.068088]
[1733243421733,1.20721062,95965.0,95964.0,0.068088]
[1733243422129,1.04229062,95965.0,95964.0,0.068088]
[1733243422329,1.04229062,95965.0,95964.0,0.182388]
[1733243422937,0.54506322,95965.0,95964.0,0.182388]
[1733243423327,0.54506322,95965.0,95964.0,1.682388]
[1733243424036,0.27297951,95970.0,95964.0,1.6303]
[1733243424333,0.001,95970.0,95969.0,0.052125]
[1733243424539,0.28033458,95971.0,95969.0,0.16496]
[1733243424833,0.28033458,95971.0,95970.0,0.052124]
[1733243425034,0.34264176,95979.0,95970.0,1.50004]
[1733243425334,0.34264176,95979.0,95978.0,0.05212]
[1733243425529,0.34264176,95981.0,95978.0,4e-05]
[1733243426030,0.34264176,95981.0,95980.0,0.052119]
[1733243426031,0.34268738,95981.0,95980.0,0.052119]
[1733243426234,0.34268738,95982.0,95981.0,0.052078]
[1733243426432,0.34268738,95982.0,95981.0,0.105178]
[1733243426628,0.34268738,95982.0,95981.0,0.105218]
[1733243426831,0.34268738,95984.0,95983.0,0.052077]
[1733243427130,0.28041928,95988.0,95987.0,0.052075]
[1733243427434,0.00010661,95992.0,95988.0,0.052075]
[1733243427840,0.00010661,95992.0,95988.0,0.103015]
[1733243428539,0.00010661,95992.0,95991.0,0.052073]
[1733243428730,0.00010661,95992.0,95988.0,0.05094]
[1733243428731,0.00010661,95992.0,95988.0,4e-05]
[1733243429042,0.00010661,95992.0,95967.0,0.02084971]
[1733243429043,0.36084,95989.0,95967.0,0.02084971]
[1733243429234,0.64129345,95976.0,95968.0,0.052085]
[1733243429431,4e-05,95969.0,95968.0,0.052085]
[1733243429942,0.10700394,95969.0,95968.0,0.052085]
[1733243430938,0.10700394,95969.0,95968.0,0.055085]
[1733243431140,0.10700394,95969.0,95968.0,0.056085]
[1733243431333,0.10700394,95969.0,95968.0,0.004]
[1733243431736,0.10700394,95969.0,95968.0,0.002]
[1733243431942,0.10700394,95969.0,95968.0,0.056085]
[1733243432142,4e-05,95969.0,95968.0,0.056085]
[1733243432339,0.20135346,95969.0,95968.0,0.056085]
[1733243432533,4e-05,95969.0,95968.0,0.056085]
[1733243432847,0.09438952,95969.0,95968.0,0.056085]
[1733243433143,0.34286533,95969.0,95968.0,0.056085]
[1733243433336,0.32624146,95969.0,95968.0,0.053085]
[1733243433543,0.20235346,95969.0,95968.0,0.053085]
[1733243433743,0.20235346,95969.0,95968.0,0.052085]
[1733243433943,0.20335346,95969.0,95968.0,0.052085]
[1733243434145,0.00204,95969.0,95968.0,0.052085]
[1733243434450,0.09292787,95969.0,95968.0,0.053085]
[1733243434636,0.32458806,95969.0,95968.0,0.053085]
[1733243435037,0.32458806,95969.0,95968.0,0.052085]
[1733243435038,0.19970006,95969.0,95968.0,0.052085]
[1733243435247,0.20270006,95969.0,95968.0,0.052085]
[1733243435638,0.32758806,95969.0,95968.0,0.052085]
[1733243435835,0.20270006,95969.0,95968.0,0.052085]
[1733243436040,0.00404,95969.0,95968.0,0.052085]
[1733243436238,0.20270006,95969.0,95963.0,0.068748]
[1733243436444,0.412887,95964.0,95963.0,0.01666]
[1733243436647,0.84890806,95964.0,95963.0,0.068748]
[1733243437151,0.84894806,95964.0,95963.0,0.068748]
[1733243437536,0.84994806,95964.0,95963.0,0.068748]
[1733243437848,0.85594806,95964.0,95963.0,0.069748]
[1733243438147,0.84994806,95964.0,95963.0,0.068748]
[1733243438348,0.84894806,95964.0,95963.0,0.071748]
[1733243438550,0.84894806,95964.0,95963.0,0.072748]
[1733243438752,0.48814806,95964.0,95963.0,0.072748]
[1733243438956,0.54187456,95964.0,95963.0,0.072748]
[1733243439150,0.54187456,95964.0,95963.0,1.572748]
[1733243439151,0.19870006,95964.0,95963.0,1.572748]
[1733243439649,0.34315849,95964.0,95963.0,1.572748]
[1733243439847,0.34315849,95964.0,95963.0,1.569748]
[1733243440040,0.34315849,95964.0,95963.0,1.573748]
[1733243440041,0.09288787,95964.0,95963.0,1.573748]
[1733243440448,0.09288787,95964.0,95963.0,1.569748]
[1733243441749,0.09288787,95964.0,95963.0,0.069748]
[1733243441955,0.21419955,95964.0,95963.0,0.069748]
[1733243442155,0.14628787,95964.0,95963.0,0.069748]
[1733243443256,0.1433276,95964.0,95963.0,0.069748]
[1733243443763,0.42410177,95964.0,95963.0,0.068748]
[1733243443959,0.1433276,95964.0,95963.0,0.01766]
[1733243444360,0.1433276,95964.0,95963.0,0.069747]
[1733243444656,0.0534,95964.0,95963.0,0.069747]
[1733243444956,0.1433276,95964.0,95963.0,0.069747]
[1733243445149,0.0584,95964.0,95963.0,0.069747]
[1733243445352,0.30526189,95964.0,95963.0,0.069747]
[1733243446048,0.30526189,95964.0,95963.0,0.068747]
[1733243446257,0.30626189,95964.0,95963.0,0.068747]
[1733243446648,0.30632446,95964.0,95963.0,0.068747]
[1733243446960,0.30532446,95964.0,95963.0,0.068747]
[1733243447258,0.2029276,95964.0,95963.0,0.068747]
[1733243447456,0.1979276,95964.0,95963.0,0.068747]
[1733243447662,0.2019276,95964.0,95963.0,0.068747]
[1733243448058,0.0939276,95964.0,95963.0,0.068747]
[1733243448360,0.09386657,95964.0,95963.0,0.068747]
[1733243448665,0.09186657,95964.0,95963.0,0.068747]
[1733243448859,0.09186657,95964.0,95963.0,1.568747]
[1733243449251,0.1942951,95964.0,95963.0,1.568747]
[1733243450356,0.1942951,95964.0,95963.0,1.569747]
[1733243450950,0.1942951,95964.0,95963.0,1.568747]
[1733243451156,0.1942951,95964.0,95963.0,1.569747]
[1733243451361,0.1922951,95964.0,95963.0,1.569747]
[1733243451966,0.34314402,95970.0,95965.0,0.052086]
[1733243452160,0.34314402,95970.0,95969.0,0.052084]
[1733243452353,0.31428141,95970.0,95969.0,0.052084]
[1733243452665,0.1924687,95970.0,95969.0,0.052084]
[1733243452960,0.10452209,95971.0,95967.0,0.52536]
[1733243453160,0.67275875,95996.0,95967.0,0.52536]
[1733243453161,0.03046293,95986.0,95985.0,0.052076]
[1733243453364,0.03046293,95986.0,95980.0,0.052078]
[1733243453365,0.11632202,95995.0,95982.0,0.16456]
[1733243453554,0.11632202,95995.0,95991.0,0.052072]
[1733243453754,0.11632202,95995.0,95991.0,0.06877201]
[1733243454764,0.08177864,95992.0,95991.0,0.01670001]
[1733243454965,0.14602866,95992.0,95991.0,0.01670001]
[1733243455663,0.15802866,95992.0,95991.0,0.06977201]
[1733243456260,0.24472738,95992.0,95991.0,0.06977201]
[1733243456457,0.29679938,95992.0,95991.0,0.01770001]
[1733243457271,0.2968051,95992.0,95991.0,0.01770001]
[1733243457868,0.052073,95990.0,95989.0,0.052073]
[1733243458066,0.052073,95990.0,95968.0,0.062485]
[1733243458067,0.35012526,95990.0,95970.0,0.0026]
[1733243458263,0.35012526,95990.0,95969.0,0.02085025]
[1733243458264,0.3608,95977.0,95976.0,0.05208]
[1733243458458,0.54636526,95977.0,95976.0,0.05208]
[1733243458664,0.6633174,95977.0,95976.0,0.05208]
[1733243458860,0.7153974,95977.0,95976.0,0.05208]
[1733243459066,0.6633174,95977.0,95976.0,0.05208]
[1733243459867,0.54636526,95977.0,95976.0,0.05208]
[1733243460172,0.59844526,95977.0,95976.0,0.05208]
[1733243460370,0.052081,95976.0,95975.0,0.0134]
[1733243460569,0.66677545,95976.0,95975.0,0.0134]
[1733243460770,0.3548517,95976.0,95975.0,0.0134]
[1733243460972,0.40925822,95976.0,95975.0,0.00833]
[1733243461574,0.35717722,95976.0,95975.0,0.060412]
[1733243462077,0.36117722,95976.0,95975.0,0.052082]
[1733243462270,0.3908779,95976.0,95975.0,0.052082]
[1733243462472,0.27371246,95976.0,95975.0,0.052082]
[1733243462672,0.27471246,95976.0,95975.0,0.052082]
[1733243463178,0.27471246,95976.0,95974.0,0.00507]
[1733243463179,0.052082,95975.0,95974.0,0.00507]
[1733243463365,0.30360178,95975.0,95964.0,0.052087]
[1733243463681,0.412927,95965.0,95964.0,0.052087]
[1733243463871,0.412927,95965.0,95959.0,0.05209]
[1733243463872,0.04376,95960.0,95959.0,0.05209]
[1733243464069,0.82860178,95965.0,95954.0,1.50104]
[1733243464070,0.34320175,95961.0,95954.0,1.50104]
[1733243464381,0.0542,95959.0,95958.0,0.052091]
[1733243464577,0.24027178,95959.0,95958.0,0.052091]
[1733243464776,0.18607178,95959.0,95958.0,0.052091]
[1733243464983,0.34320175,95960.0,95959.0,0.05209]
[1733243465177,0.41116194,95960.0,95959.0,1.91289]
[1733243465478,4e-05,95965.0,95964.0,0.052087]
[1733243465672,4e-05,95965.0,95959.0,2.21289]
[1733243465673,0.31197533,95975.0,95974.0,0.052082]
[1733243465878,0.31197533,95976.0,95975.0,0.052082]
[1733243466074,0.31197533,95989.0,95988.0,0.052074]
[1733243466273,4e-05,95990.0,95988.0,0.052074]
[1733243466479,0.216234,95989.0,95988.0,4e-05]
[1733243466681,0.32849375,95989.0,95988.0,4e-05]
[1733243467583,0.052083,95972.0,95970.0,0.052084]
[1733243467880,0.10754,95971.0,95970.0,0.052084]
[1733243468078,0.46834,95971.0,95970.0,0.052084]
[1733243468870,0.6850224,95971.0,95970.0,0.052084]
[1733243469075,0.052086,95967.0,95966.0,0.052086]
[1733243469379,0.6359414,95971.0,95969.0,0.052085]
[1733243469380,0.1641854,95970.0,95969.0,0.052085]
[1733243469685,0.1121014,95970.0,95963.0,0.02085158]
[1733243469870,0.052086,95966.0,95965.0,0.052087]
[1733243470477,0.14802855,95966.0,95965.0,0.052087]
[1733243470672,0.26012995,95966.0,95965.0,0.052087]
[1733243470876,0.14802855,95966.0,95965.0,0.052087]
[1733243471782,0.09694255,95966.0,95965.0,0.052087]
[1733243472088,0.34413091,95966.0,95965.0,0.052087]
[1733243472276,0.20929815,95966.0,95965.0,0.052087]
[1733243472482,0.20929815,95966.0,95965.0,1.553087]
[1733243472483,0.09694255,95966.0,95965.0,1.553087]
[1733243472681,0.217246,95966.0,95965.0,0.001]
[1733243472980,0.05209,95959.0,95958.0,0.00833]
[1733243473285,0.41293,95959.0,95958.0,0.00833]
[1733243473581,0.052094,95951.0,95935.0,0.0104]
[1733243473784,0.62090253,95951.0,95930.0,1.5]
[1733243473976,0.34310308,95931.0,95930.0,0.052106]
[1733243474176,0.45678253,95931.0,95930.0,0.052106]
[1733243474386,0.56925035,95931.0,95930.0,0.052106]
[1733243474676,0.052106,95928.0,95926.0,0.052107]
[1733243474880,0.09594253,95927.0,95926.0,0.052107]
[1733243475082,0.20845035,95927.0,95926.0,0.052107]
[1733243475483,0.09598253,95927.0,95926.0,0.052107]
[1733243475977,0.09598253,95927.0,95926.0,0.107107]
[1733243476283,4e-05,95931.0,95930.0,0.052105]
[1733243477388,0.34258804,95931.0,95930.0,0.052105]
[1733243477685,0.36088967,95958.0,95932.0,0.052104]
[1733243477686,0.34254804,95933.0,95932.0,0.052104]
[1733243477980,0.34254804,95946.0,95945.0,0.052097]
[1733243478282,0.0512,95957.0,95949.0,0.052095]
[1733243478283,0.34254804,95953.0,95949.0,0.052095]
[1733243478483,0.39374804,95957.0,95949.0,0.052095]
[1733243478780,0.34254804,95955.0,95949.0,0.05217499]
[1733243478985,0.39099725,95950.0,95949.0,0.05217499]
[1733243479784,0.39099725,95950.0,95949.0,7.999e-05]
[1733243479979,0.44309125,95950.0,95949.0,7.999e-05]
[1733243480883,0.44309125,95950.0,95949.0,0.00107999]
[1733243481090,0.60729125,95950.0,95949.0,0.00107999]
[1733243481289,0.052097,95946.0,95945.0,0.003]
[1733243481587,0.052137,95946.0,95945.0,0.003]
[1733243481988,4e-05,95946.0,95945.0,0.055097]
[1733243482392,0.00704,95946.0,95945.0,0.004]
[1733243482685,0.059137,95946.0,95945.0,0.001]
[1733243482988,0.052104,95933.0,95931.0,0.052105]
[1733243483196,0.105504,95932.0,95931.0,0.052105]
[1733243483393,0.05344,95932.0,95927.0,0.052107]
[1733243483578,0.05344,95932.0,95922.0,0.05211]
[1733243483579,0.052108,95926.0,95922.0,0.05211]
[1733243483888,0.052108,95926.0,95918.0,7.468e-05]
[1733243483889,0.41304736,95926.0,95920.0,0.052111]
[1733243484894,0.36093936,95926.0,95918.0,7.468e-05]
[1733243485186,0.052111,95919.0,95918.0,7.468e-05]
[1733243485389,0.216351,95919.0,95918.0,7.468e-05]
[1733243485782,0.052116,95911.0,95906.0,0.052118]
[1733243485986,0.052118,95907.0,95906.0,0.052118]
[1733243486192,0.577158,95907.0,95906.0,0.052118]
[1733243486387,0.52508,95907.0,95891.0,1.5]
[1733243486580,0.052121,95902.0,95901.0,0.052121]
[1733243487187,0.052121,95902.0,95891.0,1.50104]
[1733243487390,0.052121,95902.0,95891.0,1.50208]
[1733243487686,0.052121,95902.0,95900.0,0.152121]
[1733243487885,0.052121,95902.0,95900.0,0.1]
[1733243487886,0.05220171,95901.0,95900.0,0.1]
[1733243488083,0.05220171,95901.0,95880.0,0.01196433]
[1733243488084,0.052129,95887.0,95886.0,0.052129]
[1733243488290,0.16424,95887.0,95886.0,0.052129]
[1733243488584,0.16428,95887.0,95886.0,0.052129]
[1733243489493,4e-05,95887.0,95886.0,0.053129]
[1733243489785,0.00104,95887.0,95886.0,0.053129]
[1733243490286,0.00104,95887.0,95886.0,1.913929]
[1733243491395,8.071e-05,95901.0,95900.0,0.052122]
[1733243491587,0.03023123,95901.0,95900.0,0.052122]
[1733243491793,8.071e-05,95901.0,95900.0,0.05216201]
[1733243491984,8.071e-05,95901.0,95900.0,1.55216201]
[1733243493191,8.071e-05,95901.0,95900.0,1.55316201]
[1733243493396,8.071e-05,95901.0,95900.0,1.55516201]
[1733243494791,8.071e-05,95901.0,95900.0,1.55616201]
[1733243495496,0.00108071,95901.0,95900.0,1.55916201]
[1733243495685,0.00108071,95901.0,95900.0,1.56416201]
[1733243495889,8.071e-05,95901.0,95900.0,1.55716201]
[1733243496089,8.071e-05,95901.0,95900.0,1.55916201]
[1733243496599,0.00108071,95901.0,95900.0,1.56416201]
[1733243496987,0.00108071,95901.0,95900.0,1.56116201]
[1733243498101,0.0026,95937.0,95900.0,1.67296001]
[1733243498102,0.65402,95926.0,95900.0,1.67296001]
[1733243498401,0.21646,95926.0,95924.0,0.052109]
[1733243498698,0.08057257,95925.0,95924.0,0.052109]
[1733243498902,0.24449257,95925.0,95924.0,0.05214901]
[1733243499098,0.19366676,95925.0,95924.0,0.05214901]
[1733243499407,7.419e-05,95925.0,95924.0,0.05214901]
[1733243501190,7.419e-05,95925.0,95924.0,1.55214901]
[1733243501597,7.419e-05,95925.0,95924.0,1.55414901]
[1733243501997,7.419e-05,95925.0,95924.0,1.55614901]
[1733243502305,7.419e-05,95925.0,95924.0,1.55414901]
[1733243502505,7.419e-05,95925.0,95924.0,0.05614901]
[1733243502802,7.419e-05,95925.0,95924.0,0.05714901]
[1733243503800,7.419e-05,95925.0,95924.0,0.07801096]
[1733243504000,0.16392,95947.0,95941.0,0.052099]